Cogmind - Beta 15 *** ADVENTURER MODE // 2025.08.09 @ 06:21:38 Player: nixie Result: Destroyed by Y-45 Defender with Heavy Assault Rifle Performance ------------- Evolutions (1) 500 Regions Visited (2) 400 Robots Destroyed (23) 115 Value Destroyed (466) 466 Prototype IDs (1) 20 Alien Tech Used (0) 0 Bonus (0) 0 TOTAL SCORE: 1501 Bonus ------- None Cogmind --------- Core Integrity 0/400 Matter 300/300 Energy 100/100 System Corruption 5% Temperature Cool (9) Movement Treading (160) Location -9/Materials Parts ------- > --- POWER (2) -------- (None) > --- PROPULSION (2) --- Light Treads > --- UTILITY (2) ------ Heat Sink Medium Storage Unit > --- WEAPON (3) ------- (None) > --- INVENTORY (10) --- Signal Interpreter Peak State ------------ > --- POWER ------------ Light Ion Engine > --- PROPULSION ------- Aluminum Leg Improved Flight Unit > --- UTILITY ---------- Medium Storage Unit Structural Scanner > --- WEAPON ----------- Small Laser Assault Rifle > --- INVENTORY -------- (None) [Rating: 9] Favorites ----------- Power Light Ion Engine Engine Light Ion Engine Propulsion Light Treads Treads Light Treads Leg Aluminum Leg Flight Unit Improved Flight Unit Utility Small Storage Unit Device Structural Scanner Storage Small Storage Unit Weapon Assault Rifle Energy Gun Small Laser Ballistic Gun Assault Rifle Special Weapon Mining Laser Special Melee Weapon Datajack Build | -11 -10 -9 ------- Run | Yrd Mat Mat Slots Evolved 2 | . . 2 Power 1 | . . 1 Propulsion . | . . . Utility . | . . . Weapon 1 | . . 1 Parts Attached 21 | 6 8 7 Power 3 | 1 1 1 Engine 3 | 1 1 1 Core . | . . . Reactor . | . . . Propulsion 6 | 2 1 3 Treads 4 | 2 . 2 Leg 1 | . 1 . Wheel . | . . . Hover . | . . . Flight 1 | . . 1 Utility 5 | 1 3 1 Device 3 | . 2 1 Storage 2 | 1 1 . Processor . | . . . Hackware . | . . . Protection . | . . . Artifact . | . . . Weapon 7 | 2 3 2 Energy Gun 3 | . 1 2 Energy Cannon . | . . . Ballistic Gun 2 | 2 . . Ballistic Cannon . | . . . Launcher . | . . . Special Weapon 1 | . 1 . Impact Weapon . | . . . Slashing Weapon . | . . . Piercing Weapon . | . . . Special Melee Weapon 1 | . 1 . Unidentified Prototypes 1 | . . 1 Corrupted Parts 1 | . . 1 System Corruption 2 | . . 2 Parts Lost 10 | . 2 8 Power 3 | . 1 2 Propulsion 2 | . . 2 Utility 1 | . . 1 Weapon 4 | . 1 3 Highest Loss Streak 3 | . 2 3 To Critical Strikes . | . . . Average Backups . | 1 . . Power . | . . . Propulsion . | . . . Utility . | . . . Weapon . | . . . Tool/Special . | . . . Unused Backups 1 | . . 1 Power . | . . . Propulsion . | . . . Utility 1 | . . 1 Weapon . | . . . Tool/Special . | . . . Average Slot Usage (%) 69 | . 83 52 Engine 10 | . 12 7 Treads 10 | . 14 4 Leg 5 | . 5 5 Device 8 | . 7 8 Storage 12 | . 14 11 Energy Gun 5 | . 2 9 Ballistic Gun 10 | . 14 5 Special Weapon 1 | . 2 . Special Melee Weapon 4 | . 7 . Peak Build Rating 9 | 6 7 9 Average Rating 5 | 3 5 5 On Entrance 4 | . 6 6 Naked Turns . | . . . Heaviest Build 20 | 13 17 20 Greatest Support 40 | 40 40 40 Greatest Overweight (x) 4 | . 4 3 Average Overweight (x) . | . . 1 Largest Inventory Capacity 10 | 8 10 10 Average Capacity 8 | 6 8 10 Most Carried 5 | 5 2 5 Average Carried . | . . . Final Capacity 10 | 8 10 10 Final Carried 1 | . . 1 Class Distribution -------------------- 63% | Mutant 32% | Scavenger-Mutant 3% | Scavenger-Skirmisher Dominant Class ---------------- Mutant | -10/Materials Scavenger-Mutant | -9/Materials Resources | -11 -10 -9 ----------- Run | Yrd Mat Mat Matter Collected 544 | 161 281 102 Remotely . | . . . Salvage Created 695 | . 370 325 Parts 56 | . 35 21 Haulers Intercepted . | . . . Recyclers Shooed 1 | . 1 . Parts Field Recycled . | . . . Retrieved Matter . | . . . Parts Self-Destructed . | . . . Prevented . | . . . Kills | -11 -10 -9 ------- Run | Yrd Mat Mat Combat Hostiles Destroyed 15 | . 8 7 Melee 1 | . . 1 Guns 13 | . 7 6 Cannons 1 | . 1 . Classes Destroyed 8 | . 6 2 Worker 3 | . 3 . Builder 1 | . 1 . Recycler 2 | . 2 . Watcher 2 | . 2 . Swarmer 6 | . 6 . Grunt 5 | . 2 3 Brawler 1 | . . 1 Sentry 3 | . . 3 Best Kill Streak 6 | . 6 5 Combat Bots Only 5 | . 3 5 Max Kills in Single Turn 1 | . 1 1 Gunslinging . | . . . Exploded . | . . . Melee 1 | . . 1 Uniques/NPCs Destroyed . | . . . Combat | -11 -10 -9 -------- Run | Yrd Mat Mat Hostile Shots Fired 199 | . 57 142 Missed 58 | . 14 44 Hits 141 | . 43 98 Projectile 141 | . 43 98 Critical Strikes 4 | . . 4 Damage Taken 1434 | . 348 1086 Core 525 | . 125 400 Absorbed by Shields . | . . . Ignored by Resistances 419 | . 111 308 Core Remaining (%) 75 | 100 50 . Volleys Fired 71 | . 44 27 Largest 3 | . 2 3 Hottest 120 | . 120 105 Shots Fired 91 | . 51 40 Gun 84 | . 44 40 Cannon . | . . . Launcher . | . . . Special 7 | . 7 . Kinetic 49 | . 44 5 Thermal 34 | . 7 27 Explosive . | . . . Electromagnetic 8 | . . 8 Robot Hit Streak 22 | . 7 22 Robot Miss Streak 2 | . 2 1 Penetration Max . | . . . Secondary Targets . | . . . Shots Hit Robots 74 | . 39 35 Core Hits 38 | . 22 16 Critical Kills . | . . . Critical Parts Destroyed . | . . . Critical Strikes . | . . . Melee Attacks 8 | . 8 . Impact . | . . . Slashing . | . . . Piercing . | . . . Sneak Attacks . | . . . Combat Hostiles . | . . . Follow-up Attacks . | . . . Damage Inflicted 1034 | . 543 491 Guns 921 | . 471 450 Cannons . | . . . Explosions . | . . . Melee . | . . . Ramming 41 | . . 41 Kinetic 508 | . 471 37 Thermal 347 | . 72 275 Explosive . | . . . Electromagnetic 138 | . . 138 Impact . | . . . Slashing . | . . . Piercing . | . . . Highest Corruption 5 | . . 5 Average Corruption 4 | . . 4 Corruption Purged . | . . . Corruption Blocked . | . . . Effects 6 | . . 6 Matter Fused 3 | . . 3 Heat Flow Errors 1 | . . 1 Energy Discharges 1 | . . 1 Data Loss (minor) 1 | . . 1 Overload Shots . | . . . Overflow Damage . | . . . Projectiles . | . . . Explosions . | . . . Melee . | . . . Knockbacks 1 | . . 1 Impact 1 | . . 1 Kinetic . | . . . Secondary . | . . . Self-Inflicted Damage . | . . . Shots . | . . . Rammed 28 | . . 28 Targets Rammed 29 | . . 29 Kicked . | . . . Crushed 1 | . . 1 Highest Temperature 142 | . 21 142 Average Temperature 30 | . 9 44 Received Heat Transfer 714 | . 183 531 Siege Activations . | . . . Martial Activations . | . . . Shielding Activations . | . . . Robots Disrupted . | . . . Combat Hostiles . | . . . Robots Corrupted . | . . . Combat Hostiles . | . . . Parts Fried . | . . . Impact Corruptions . | . . . Robots Melted . | . . . Combat Hostiles . | . . . Parts Melted 1 | . . 1 Heat Transferred 775 | . 150 625 Parts Sabotaged . | . . . Parts Stolen . | . . . Parts Stripped . | . . . Power Chain Reactions . | . . . Alert | -11 -10 -9 ------- Run | Yrd Mat Mat Maximum Alert Level . | . . . Low Security (%) 100 | 100 100 100 Level 1 . | . . . Level 2 . | . . . Level 3 . | . . . Level 4 . | . . . Level 5 . | . . . High Security . | . . . Max Security . | . . . Peak Influence 97 | . 97 95 Initial . | . . . Average 36 | . 38 39 Influence Increases 477 | . 241 236 Destroy 0b10 Robot/C 300 | . 160 140 Destroy 0b10 Robot/NC 40 | . 40 . Destroy Leader 74 | . 34 40 Successful Hack 18 | . 7 11 Lose Combat Pursuer 45 | . . 45 Influence Decreases 442 | . 241 201 Time Decay 342 | . 221 121 Lost Part 100 | . 20 80 Squads Dispatched . | . . . Investigation . | . . . Extermination . | . . . Reinforcement . | . . . Assault . | . . . Garrison . | . . . Intercept . | . . . Searches Triggered . | . . . Construction Impeded . | . . . Haulers Reinforced . | . . . Active Scanning Responses . | . . . Cargo Convoy Interrupts . | . . . Stealth | -11 -10 -9 --------- Run | Yrd Mat Mat Distress Signals 1 | . . 1 Communications Jammed . | . . . Distress Signals . | . . . Times Spotted 23 | . 10 13 Peak Tracking Total 8 | . 3 8 Tactical Retreats 3 | . . 3 Traps | -11 -10 -9 ------- Run | Yrd Mat Mat Traps Triggered 1 | . 1 . Indirectly . | . . . Trap Hack Attempts 1 | . 1 . Triggered . | . . . Disarmed . | . . . Reprogrammed . | . . . Reused . | . . . Traps Extracted . | . . . Installed . | . . . Triggered . | . . . Machines | -11 -10 -9 ---------- Run | Yrd Mat Mat Machines Disabled . | . . . Max in Single Turn . | . . . Machines Repaired . | . . . Machines Dismantled . | . . . Machines Sabotaged . | . . . Overloaded Fab Kills . | . . . Hacking | -11 -10 -9 --------- Run | Yrd Mat Mat Machines Accessed 5 | . 3 2 Terminals 4 | . 2 2 Fabricators . | . . . Repair Stations . | . . . Recycling Units 1 | . 1 . Scanalyzers . | . . . Garrison Access . | . . . Total Hacks 17 | . 10 7 Successful 11 | . 7 4 Failed 6 | . 3 3 Catastrophic . | . . . Database Lockouts . | . . . Manual . | . . . Terminals 11 | . 4 7 Fabricators . | . . . Repair Stations . | . . . Recycling Units 6 | . 6 . Scanalyzers . | . . . Garrison Access . | . . . Terminal Hacks 8 | . 4 4 Record 1 | . . 1 Alert Level 1 | . . 1 Locate Traps 2 | . 2 . Recall Reinforcements 1 | . . 1 Zone Layout 3 | . 2 1 Fabricator Hacks . | . . . Repair Station Hacks . | . . . Recycling Unit Hacks 3 | . 3 . Recycle Component 1 | . 1 . Process 1 | . 1 . Retrieve Components 1 | . 1 . Scanalyzer . | . . . Garrison Access Hacks . | . . . Unauthorized Hacks . | . . . Terminals . | . . . Fabricators . | . . . Repair Stations . | . . . Recycling Units . | . . . Scanalyzers . | . . . Garrison Access . | . . . Data Cores Recovered . | . . . Used . | . . . Hacking Detections 4 | . 2 2 Full Trace Events . | . . . Feedback Events . | . . . Feedback Blocked . | . . . Robot Schematics Acquired . | . . . Robots Built . | . . . Authchips . | . . . Time . | . . . Total Robot Build Rating . | . . . Part Schematics Acquired . | . . . Parts Built . | . . . Authchips . | . . . Time . | . . . Total Part Build Rating . | . . . Parts Repaired . | . . . Time . | . . . Parts Recycled 1 | . 1 . Recycled Matter 91 | . 91 . Retrieved Matter . | . . . Retrieved Components . | . . . Parts Scanalyzed . | . . . Part Schematics Acquired . | . . . Parts Damaged . | . . . Bothacking | -11 -10 -9 ------------ Run | Yrd Mat Mat Used RIF Installer . | . . . Robots Hacked . | . . . Non-combat . | . . . Combat . | . . . Robot Hacks Applied . | . . . Relay Couplers Released . | . . . Fabnet Peak Effective % . | . . . Robots Rewired . | . . . Allies Hacked . | . . . Hacks Repelled . | . . . Allies | -11 -10 -9 -------- Run | Yrd Mat Mat Total Allies . | . . . Largest Group . | . . . Highest-Rated Group . | . . . Highest-Rated Ally . | . . . Total Orders . | . . . Ally Attacks . | . . . Total Damage . | . . . Kills . | . . . Allies Corrupted . | . . . Allies Melted . | . . . Intel | -11 -10 -9 ------- Run | Yrd Mat Mat Active Infowar (turns) 587 | . 332 255 Structural 447 | . 192 255 Seismic 140 | . 140 . Robot Analysis Total . | . . . Derelict Logs Recovered . | . . . Drone Launches . | . . . Drone Recoveries . | . . . Exploration | -11 -10 -9 ------------- Run | Yrd Mat Mat Turns Passed 1084 | 62 583 439 Spaces Moved 470 | 49 255 166 Core 75 | 27 8 40 Treads 196 | 22 144 30 Legs 199 | . 103 96 Wheels . | . . . Hover . | . . . Flight . | . . . Fastest Speed 50 | 50 120 160 Average Speed 168 | 99 169 186 Slowest Speed 250 | 160 250 200 Overloaded Moves . | . . . Propulsion Burnouts . | . . . Robots Hopped . | . . . Potential Cave-ins . | . . . Cave-ins Triggered . | . . . Exploration Rate (%) 21 | 3 46 15 Regions Visited 2 Branch Regions . Pre-discovered Areas . | . . . Known Exits Taken . | . . . Unknown Exits Taken 2 | 1 1 . Scrap Searched . | . . . Spaces Dug . | . . . Terrain Destroyed . | . . . Melee . | . . . Projectile . | . . . AOE . | . . . Terrain Rammed . | . . . Walls Destroyed . | . . . Machines Disabled . | . . . Actions | -11 -10 -9 --------- Run | Yrd Mat Mat Total 640 | 62 338 240 Wait 13 | 2 11 . Move 468 | 48 254 166 Hop . | . . . Pick Up 22 | 6 8 8 Fast Attach . | . . . Attach 18 | 6 5 7 Detach 2 | . 1 1 Swap 3 | . 3 . Drop 5 | . 3 2 Fire 71 | . 44 27 Melee 8 | . 8 . Ram . | . . . Kick . | . . . Crush 29 | . . 29 Escape Stasis . | . . . Rewire . | . . . Trap 1 | . 1 . Miscellaneous . | . . . Route ------- -11/Scrapyard -10/Materials (discovered 3 exits: *Mat / [*Min] / [Sub]) -9/Materials History --------- Turn | Location | Event 4 | -11/Scrapyard | Discovered new exit (range 13) 63 | -11/Scrapyard | Entered Materials 307 | -10/Materials | Build established: Mutant 328 | -10/Materials | Discovered new exit (range 7) 544 | -10/Materials | Discovered new exit (range 16) 582 | -10/Materials | Discovered new exit (range 16) 646 | -10/Materials | Entered another Materials area 646 | -9/Materials | Evolved 2 slots: Power x1, Weapon x1 898 | -9/Materials | Lost 3 parts (1p1n1w) 972 | -9/Materials | Core integrity fell below 50% 1055 | -9/Materials | Core integrity fell below 20% 1085 | -9/Materials | Destroyed by Y-45 Defender with Heavy Assault Rifle Last Messages --------------- G-34 Mercenary knocked back. Crushed G-34 Mercenary. G-34 Mercenary destroyed. System corrupted: Component data lost. Slammed into Y-45 Defender. Processing Tank disabled. Slammed into Y-45 Defender. System corrupted: Matter fused (-8). Acquired 4 matter. Slammed into Y-45 Defender. Acquired 2 matter. Slammed into Y-45 Defender. Critical hit (Burn: +37). Slammed into Y-45 Defender. Imp. Ion Engine destroyed. Lgt. Treads destroyed. Slammed into R-06 Scavenger. Slammed into Y-45 Defender. K-01 Serf cleans the Terminal. Slammed into Y-45 Defender. Map ----- +----------------------------------------------------+ | ????????###### ! ##?????????# ??????????????? | | ########## # ##?????????# ??????????????? | | ########## # ##?????????# ??????????????? | | # # "T" ##########?# ??????????????? | | # ###+################# ??????????????? | | """ """ # ??????????????? | | """ """ + ??????????????? | | """ """ # ???? ????????? | | # ###+################# ??? ???????? | | # ## ############## ? ????????? | | # ## ##???######### ???????? | | ########## ## """ ##???######### ???????? | | ########## ## """ ####### ??????? | | ????????## ## """ ####### ??????? | | ????###### ## + """??????????? | | ???? # [ ######## ### """??????????? | | ????##### # ######## ### ??????????????? | | ???????## " + ##????## ### ??????????????? | | ???????## # " " ######## ### ??????????????? | | ???????## # "R" ########+### ????????????????? | | ???????######## """ ## #"????????????????? | | ???????## #########" """"" #"T """ ?????????? | | ???????## #########T """""w#"" ??????????? | | ???????## #########" " """ k ??????????? | | ???????## %+%%%%%%%+%%%r # ????????????????? | | ???????## #########%%%@ ##????????????????? | | ???????## ######### %%Y ##????????????????? | | ???????## ######### %% ##????????????????? | | ??????## % ####################????????????????? | | #??######%% # ####### ##????????????????? | | #######+## ?????????????????????? | | % ##??????????????????????????? | | ##??????????????????????????? | | ##??????????????????????????? | | ########## ##??????????????????????????? | | # ?## #### ##??????????????????????????? | | # ????????????### #####??????????????????????????? | | ??????????????###+#####??????????????????????????? | | ???????????????? ?????????????????????????????? | | ??????????????????? ?????????????????????????????? | | ???????????????????? ##??????????????????????????? | | ???????????????????? ##??????????????????????????? | | ???????????????????? ##??????????????????????????? | | ?????????????????????????????????????????????????? | | ?????????????????????????????????????????????????? | | ?????????????????????????????????????????????????? | | ?????????????????????????????????????????????????? | | ?????????????????????????????????????????????????? | | ?????????????????????????????????????????????????? | | ?????????????????????????????????????????????????? | +----------------------------------------------------+ Best States ------------- Heat Dissipation 38 Energy Generation 12 Energy Capacity 265 Matter Stores 300 Matter Capacity 300 Sight Range 16 Terrain Scan Density 10 Resistance: KI 20 Resistance: TH 20 Resistance: EX 20 Resistance: EM 20 Resistance: I 20 Resistance: S 20 Resistance: P 20 Evasion (%) 50 Recoil Reduction 2 Offensive Hacking 10 Item Schematics ----------------- None Robot Schematics ------------------ None Fabricated ------------ Nothing Repaired ---------- Nothing Alien Tech Used ----------------- None Achievements -------------- None Challenges ------------ None Game ------ Seed PersonalAlphaPenetrator Manual? 0 Play Time 00:15:54 Cumulative 6.4 hours Start 2025.08.09 @ 06:07:34 End 2025.08.09 @ 06:21:38 Sessions 1 Manual Loads 0 Difficulty Adventurer Special Mode None Game No. 18 Rogue 11 Adventurer 7 Explorer 0 Win Type - Total 0 Types 0/0/0/0/0/0/0/0/0/0 Lore% 8 Gallery% 15 Achievement% 13 Wizard Run 0 Options --------- Layout 1 ASCII 0 Keyboard 0 Movement Mouse Keybinds 0 Fullscreen 1 Font 32/SmallcapsGlow Map View 50x40 Zoom Use 3% Tactical HUD 0 Map Filters NONE Filters NONE Steam 1 RUN: 09cedc5e-5765-4cc5-924d-da0af68ee97b